bitfinex-derivatives/quotes_BTCF0:USTF0_20260104
["timestamp","ask_amount","ask_price","bid_price","bid_amount"]
[1767510122197,0.02514301,91376.0,91364.0,0.01095]
[1767510122497,0.02514301,91375.0,91364.0,0.01095]
[1767510122697,0.02514301,91374.0,91364.0,0.01095]
[1767510122900,0.09308,91378.0,91364.0,0.01095]
[1767510123193,0.0251426,91377.0,91364.0,0.01095]
[1767510123400,0.0251426,91376.0,91364.0,0.01095]
[1767510123699,0.0131367,91379.0,91355.0,0.09308]
[1767510123700,0.0251426,91375.0,91369.0,0.010949]
[1767510123896,0.0952687,91379.0,91367.0,0.010949]
[1767510124084,0.02514417,91378.0,91367.0,0.010949]
[1767510124290,0.02514417,91377.0,91364.0,0.01095]
[1767510124489,0.02514417,91376.0,91367.0,0.010949]
[1767510124693,0.02514417,91375.0,91367.0,0.010949]
[1767510124900,0.0952687,91379.0,91367.0,0.010949]
[1767510125199,0.02508166,91378.0,91367.0,0.010949]
[1767510125388,0.02508166,91377.0,91367.0,0.010949]
[1767510125590,0.02508166,91376.0,91367.0,0.010949]
[1767510125791,0.02508166,91375.0,91367.0,0.010949]
[1767510125997,0.0952687,91379.0,91367.0,0.010949]
[1767510126200,0.02508862,91378.0,91367.0,0.010949]
[1767510126390,0.0952687,91379.0,91367.0,0.010949]
[1767510126391,0.02509055,91377.0,91367.0,0.010949]
[1767510126591,0.02509055,91376.0,91367.0,0.010949]
[1767510126791,0.02509055,91375.0,91367.0,0.010949]
[1767510127001,0.0952687,91379.0,91367.0,0.010949]
[1767510127200,0.02509076,91378.0,91367.0,0.010949]
[1767510127396,0.02509076,91377.0,91367.0,0.010949]
[1767510127596,0.02509076,91376.0,91367.0,0.010949]
[1767510127797,0.02509076,91375.0,91361.0,0.031512]
[1767510127999,0.0249663,91371.0,91355.0,0.09308]
[1767510128198,0.0249663,91371.0,91360.0,0.01095]
[1767510128393,0.0249663,91371.0,91361.0,0.01095]
[1767510128598,0.03287458,91374.0,91361.0,0.01095]
[1767510128797,0.03287458,91374.0,91362.0,0.01095]
[1767510129801,0.04382258,91374.0,91362.0,0.01095]
[1767510130194,0.0249663,91373.0,91362.0,0.01095]
[1767510130395,0.010948,91374.0,91362.0,0.01095]
[1767510131504,0.0249663,91375.0,91362.0,0.01095]
[1767510131689,0.02510493,91374.0,91362.0,0.01095]
[1767510131894,0.0249663,91375.0,91362.0,0.01095]
[1767510132096,0.02510502,91374.0,91362.0,0.01095]
[1767510132297,0.0249663,91375.0,91363.0,0.01095]
[1767510132500,0.0249663,91372.0,91355.0,0.124592]
[1767510133001,0.0249663,91372.0,91361.0,0.01095]
[1767510134804,0.05428329,91371.0,91362.0,0.01095]
[1767510138510,0.0952687,91379.0,91361.0,0.05496794]
[1767510138710,0.02508996,91378.0,91362.0,0.05496794]
[1767510139009,0.02508996,91377.0,91362.0,0.05496794]
[1767510139194,0.02508996,91376.0,91367.0,0.010949]
[1767510139394,0.02508996,91375.0,91367.0,0.010949]
[1767510139607,0.02508996,91374.0,91367.0,0.010949]
[1767510139805,0.02508996,91373.0,91367.0,0.010949]
[1767510140111,0.0952687,91379.0,91369.0,0.010949]
[1767510141606,0.09308,91388.0,91377.0,0.010948]
[1767510143009,0.09308,91388.0,91375.0,0.010948]
[1767510143411,0.010947,91386.0,91373.0,0.00016419]
[1767510143601,0.09308,91388.0,91373.0,0.03167619]
[1767510144413,0.09308,91388.0,91373.0,0.00016419]
[1767510144414,0.1180463,91388.0,91373.0,0.00016419]
[1767510144608,0.05784088,91387.0,91373.0,0.00016419]
[1767510144813,0.0249663,91380.0,91369.0,0.010949]
[1767510145114,0.0249663,91379.0,91369.0,0.010949]
[1767510145314,0.0249663,91379.0,91368.0,0.010949]
[1767510145914,0.0249663,91379.0,91365.0,0.09308]
[1767510146119,0.0249663,91379.0,91369.0,0.010949]
[1767510147616,0.0249663,91379.0,91366.0,0.010949]
[1767510148316,0.0249663,91379.0,91365.0,0.09308]
[1767510148317,0.0249663,91379.0,91368.0,0.010949]
[1767510148819,0.0249663,91379.0,91366.0,0.010949]
[1767510150112,0.0249663,91379.0,91367.0,0.010949]
[1767510151011,0.0249663,91379.0,91365.0,0.09308]
[1767510151315,0.0249663,91379.0,91368.0,0.010949]
[1767510152419,0.0359143,91379.0,91368.0,0.010949]
[1767510153412,0.0359143,91379.0,91365.0,0.104029]
[1767510153718,0.0359143,91379.0,91366.0,0.010949]
[1767510153920,0.0249663,91379.0,91366.0,0.010949]
[1767510154525,0.0249663,91379.0,91367.0,0.010949]
[1767510154822,0.03291161,91378.0,91365.0,0.09308]
[1767510155021,0.02196361,91377.0,91365.0,0.104029]
[1767510155620,0.02196361,91377.0,91367.0,0.010949]
[1767510155817,0.0762469,91380.0,91367.0,0.010949]
[1767510156322,0.02196361,91380.0,91367.0,0.010949]
[1767510156527,0.0762469,91380.0,91367.0,0.010949]
[1767510157115,0.0762469,91380.0,91369.0,0.010949]
[1767510160325,0.0762469,91380.0,91370.0,0.010949]
[1767510162227,0.02196361,91380.0,91370.0,0.05428329]
[1767510162423,0.00016419,91382.0,91370.0,0.05428329]
[1767510162728,0.02484422,91381.0,91370.0,0.05428329]
[1767510162925,0.00016419,91382.0,91370.0,0.05428329]
[1767510163125,0.02484427,91381.0,91370.0,0.05428329]
[1767510163319,0.00016419,91382.0,91370.0,0.05428329]
[1767510163520,0.02484523,91381.0,91370.0,0.05428329]
[1767510163722,0.00016419,91382.0,91375.0,0.010948]
[1767510163919,0.02484529,91381.0,91372.0,0.010949]
[1767510164225,0.00016419,91382.0,91372.0,0.010949]
[1767510164425,0.02484661,91381.0,91373.0,0.010948]
[1767510164625,0.00016419,91382.0,91373.0,0.010948]
[1767510164927,0.02480332,91381.0,91373.0,0.010948]
[1767510165129,0.00016419,91382.0,91373.0,0.010948]
[1767510165317,0.02480488,91381.0,91373.0,0.010948]
[1767510165518,0.00016419,91382.0,91373.0,0.010948]
[1767510165720,0.02468431,91381.0,91372.0,0.010949]
[1767510165923,0.00016419,91382.0,91372.0,0.010949]
[1767510166125,0.02468594,91381.0,91372.0,0.010949]
[1767510166322,0.00016419,91382.0,91372.0,0.010949]
[1767510166530,0.02468621,91381.0,91372.0,0.010949]
[1767510166718,0.00016419,91382.0,91374.0,0.010948]
[1767510166920,0.104027,91388.0,91372.0,0.05127396]
[1767510166921,0.09308,91388.0,91372.0,0.05127396]
[1767510167114,0.02468679,91387.0,91372.0,0.05127396]
[1767510167320,0.02468679,91386.0,91372.0,0.05127396]
[1767510167529,0.1693269,91390.0,91372.0,0.05127396]
[1767510167729,0.02468784,91389.0,91372.0,0.05127396]
[1767510167932,0.02468784,91388.0,91372.0,0.0301539]
[1767510168126,0.02468784,91387.0,91379.0,0.010948]
[1767510168334,0.02468784,91386.0,91379.0,0.010948]
[1767510168533,0.02196361,91380.0,91361.0,0.0301539]
[1767510168725,0.02196361,91380.0,91361.0,0.0411039]
[1767510168922,0.010949,91371.0,91357.0,0.09308]
[1767510169136,0.05428329,91374.0,91357.0,0.09308]
[1767510169137,0.02196361,91368.0,91357.0,0.09308]
[1767510169435,0.010949,91369.0,91357.0,0.09308]
[1767510169734,0.05428329,91370.0,91357.0,0.10403]
[1767510170429,0.05428329,91370.0,91357.0,0.09308]
[1767510170630,0.03291261,91371.0,91357.0,0.09308]
[1767510170837,0.010949,91369.0,91354.0,0.00016419]
[1767510171029,0.01095,91364.0,91354.0,0.00016419]
[1767510171229,0.03291261,91367.0,91354.0,0.00016419]
[1767510171429,0.01095,91365.0,91354.0,0.00016419]
[1767510172535,0.02196361,91360.0,91349.0,0.00218942]
[1767510172734,0.02196361,91359.0,91340.0,0.1232339]
[1767510172932,0.02196361,91359.0,91346.0,0.010952]
[1767510173935,0.02196361,91359.0,91348.0,0.010952]
[1767510174521,0.02196361,91359.0,91345.0,0.010952]
[1767510177632,0.02196361,91359.0,91343.0,0.00016419]
[1767510178035,0.02196361,91355.0,91343.0,0.00016419]
[1767510178229,0.02196361,91355.0,91340.0,0.010953]
[1767510178230,0.02196361,91351.0,91340.0,0.010953]
[1767510178536,0.02196361,91351.0,91342.0,0.010952]
[1767510178728,0.02196361,91355.0,91342.0,0.010952]
[1767510178929,0.010951,91352.0,91338.0,0.104033]
[1767510179438,0.010951,91350.0,91338.0,0.09308]
[1767510179634,0.02196361,91352.0,91338.0,0.09308]
[1767510179943,0.02196361,91351.0,91337.0,0.104033]
[1767510180131,0.02024191,91350.0,91337.0,0.010953]
[1767510180833,0.02024191,91350.0,91336.0,0.00016419]
[1767510181031,0.010952,91347.0,91333.0,0.09308]
[1767510181432,0.02024191,91349.0,91333.0,0.09308]
[1767510181835,0.010952,91348.0,91333.0,0.09308]
[1767510182036,0.02024191,91347.0,91332.0,0.01111719]
[1767510182231,0.02024191,91345.0,91332.0,0.00016419]
[1767510182438,0.02024191,91345.0,91332.0,0.01111719]
[1767510182742,0.02024191,91345.0,91333.0,0.010953]
[1767510183241,0.02024191,91345.0,91335.0,0.010953]
[1767510183433,0.02024191,91348.0,91335.0,0.010953]
[1767510184434,0.03119391,91348.0,91332.0,0.01111719]
[1767510184634,0.02024191,91348.0,91334.0,0.010953]
[1767510185143,0.03119391,91347.0,91332.0,0.00016419]
[1767510185437,0.02024191,91340.0,91324.0,0.09312]
[1767510186239,0.02024191,91340.0,91327.0,0.010954]
[1767510187436,0.03119491,91340.0,91324.0,0.09312]
[1767510187743,0.02024191,91342.0,91328.0,0.010954]
[1767510188336,0.010952,91346.0,91331.0,0.06056878]
[1767510189043,0.010952,91346.0,91331.0,0.0411159]
[1767510189342,0.010952,91346.0,91333.0,0.010953]
[1767510190635,0.02024191,91353.0,91332.0,0.0301619]
[1767510190946,0.03119291,91353.0,91337.0,0.010953]
[1767510191153,0.00016419,91354.0,91341.0,0.01945288]
[1767510191441,0.00016419,91354.0,91343.0,0.0301619]
[1767510191745,0.09312,91363.0,91350.0,0.010951]
[1767510191939,0.010949,91366.0,91351.0,0.0301619]
[1767510199152,0.00016419,91368.0,91358.0,0.01095]
[1767510199450,0.0131367,91379.0,91362.0,0.0301619]
[1767510199643,0.0131367,91379.0,91361.0,0.01945288]
[1767510199644,0.010948,91377.0,91365.0,0.0301619]
[1767510200250,0.02024191,91378.0,91360.0,0.0301619]
[1767510200450,0.010948,91375.0,91360.0,0.0301619]
[1767510201344,0.010948,91377.0,91361.0,0.01095]
[1767510205444,0.01111219,91378.0,91365.0,0.0301619]
[1767510205649,0.010948,91376.0,91361.0,0.01945288]
[1767510205955,0.010948,91376.0,91359.0,0.1342319]
[1767510206346,0.010949,91373.0,91359.0,0.1232819]
[1767510208559,0.010948,91375.0,91360.0,0.01095]
[1767510209455,0.010948,91375.0,91360.0,0.0411119]
[1767510209655,0.010948,91375.0,91360.0,0.06056478]
[1767510210557,0.00016419,91378.0,91367.0,0.0308165]
[1767510210757,0.00016419,91378.0,91369.0,0.0308165]
[1767510210946,0.00016419,91378.0,91370.0,0.01867968]
[1767510211347,0.00016419,91378.0,91369.0,0.0308165]
[1767510212647,0.00016419,91378.0,91370.0,0.01816794]
[1767510213248,1e-08,91379.0,91371.0,0.02961837]
[1767510214549,1e-08,91379.0,91372.0,0.04778631]
[1767510214749,1e-08,91379.0,91374.0,0.02961837]
[1767510215151,1e-08,91379.0,91375.0,0.01816794]
[1767510215453,0.09308,91391.0,91376.0,0.04056637]
[1767510215652,0.02475034,91390.0,91376.0,0.04056637]
[1767510215850,0.02475034,91389.0,91376.0,0.04056637]
[1767510216053,0.02475034,91388.0,91376.0,0.04056637]
[1767510216254,0.09308,91391.0,91376.0,0.04056637]
[1767510216457,0.010947,91389.0,91376.0,0.02961837]
[1767510216656,0.024753,91388.0,91376.0,0.02961837]
[1767510216862,0.010947,91388.0,91376.0,0.02961837]
[1767510217058,0.01839753,91390.0,91374.0,0.01816794]
[1767510217263,0.010947,91387.0,91374.0,0.01816794]
[1767510217462,0.01839753,91390.0,91374.0,0.01816794]
[1767510217765,0.024756,91389.0,91375.0,0.02961837]
[1767510218064,0.024756,91388.0,91375.0,0.02961837]
[1767510218265,0.09324419,91391.0,91375.0,0.02961837]
[1767510218464,0.02476061,91390.0,91375.0,0.02961837]
[1767510218655,0.02476061,91389.0,91377.0,0.02961837]
[1767510218861,0.02476061,91388.0,91377.0,0.02961837]
[1767510219066,0.09324419,91391.0,91377.0,0.02961837]
[1767510219267,0.02476649,91390.0,91377.0,0.02961837]
[1767510219568,0.02476649,91389.0,91377.0,0.02961837]
[1767510219766,0.09324419,91391.0,91377.0,0.02961837]
[1767510219963,0.02476648,91390.0,91377.0,0.02961837]
[1767510220165,0.09324419,91391.0,91379.0,0.05873431]
[1767510220370,0.09324419,91391.0,91380.0,0.04778631]
[1767510220670,0.010946,91394.0,91380.0,0.04778631]
[1767510221672,0.010946,91394.0,91381.0,0.04778631]
[1767510221868,0.09308,91400.0,91386.0,0.04778631]
[1767510222067,0.010946,91395.0,91380.0,0.02961837]
[1767510222257,0.01839753,91395.0,91375.0,0.02961837]
[1767510222568,0.010947,91390.0,91376.0,0.09308]
[1767510224171,0.010947,91390.0,91375.0,0.02961837]
[1767510224572,0.01839753,91392.0,91375.0,0.02961837]
[1767510224774,0.01839753,91392.0,91378.0,0.010948]
[1767510224963,0.010946,91394.0,91378.0,0.010948]
[1767510225159,0.01839753,91397.0,91373.0,0.09308]
[1767510225160,0.010946,91397.0,91383.0,0.02961837]
[1767510225370,0.010946,91397.0,91385.0,0.04778631]
[1767510225960,0.010946,91397.0,91369.0,0.010949]
[1767510225961,0.01839753,91389.0,91367.0,0.0479505]
[1767510226172,0.01839753,91389.0,91331.0,0.010954]
[1767510226173,0.01839753,91376.0,91355.0,0.02961837]
[1767510226365,0.01839753,91376.0,91356.0,0.09308]
[1767510226561,0.01839753,91376.0,91357.0,0.05873631]
[1767510226764,0.01839753,91376.0,91357.0,0.02961837]
[1767510227065,0.01839753,91376.0,91349.0,0.00218942]
[1767510227066,0.01839753,91372.0,91351.0,0.02961837]
[1767510227265,0.01095,91364.0,91352.0,0.00016419]
[1767510228575,0.01839753,91366.0,91352.0,0.00016419]
[1767510229570,0.01095,91365.0,91352.0,0.00016419]
[1767510229764,0.01095,91365.0,91345.0,0.14086631]
[1767510229765,0.01095,91359.0,91345.0,0.12269837]
[1767510229978,0.01095,91359.0,91345.0,0.09308]
[1767510230371,0.01095,91359.0,91340.0,0.02961837]
[1767510230372,0.010951,91356.0,91340.0,0.02961837]
[1767510230571,0.02934853,91356.0,91338.0,0.09308]
[1767510230770,0.02934853,91356.0,91338.0,0.09324419]
[1767510230969,0.02934853,91356.0,91338.0,0.10419719]
[1767510232082,0.01839753,91356.0,91341.0,0.010952]
[1767510232467,0.05430908,91351.0,91341.0,0.010952]
[1767510234380,0.05430908,91351.0,91338.0,0.10419719]
[1767510235470,0.05430908,91351.0,91340.0,0.010952]
[1767510235878,0.05430908,91360.0,91344.0,0.04740636]
[1767510236079,0.05430908,91360.0,91347.0,0.04740636]
[1767510236270,0.05430908,91360.0,91348.0,0.02899277]
[1767510236870,0.05430908,91360.0,91343.0,0.01841359]
[1767510237076,0.05430908,91360.0,91343.0,0.04740636]
[1767510237283,0.05430908,91360.0,91346.0,0.010952]
[1767510237476,0.05430908,91360.0,91346.0,0.05835836]
[1767510237879,0.05430908,91360.0,91349.0,0.010951]
[1767510238078,0.05430908,91360.0,91348.0,0.04740636]
[1767510238983,0.05430908,91360.0,91350.0,0.04740636]
[1767510240786,0.0787644,91361.0,91354.0,0.018028]
[1767510240970,0.05430908,91364.0,91354.0,0.018028]
[1767510241384,0.05430908,91364.0,91350.0,0.028979]
[1767510241683,0.00016419,91367.0,91354.0,0.00446398]
[1767510241886,0.05430908,91370.0,91353.0,0.03076273]
[1767510241887,0.010949,91369.0,91358.0,0.00429979]
[1767510242079,0.010949,91369.0,91353.0,0.01525079]
[1767510242979,0.05430908,91363.0,91353.0,0.01525079]
[1767510243184,0.02862836,91362.0,91347.0,0.010952]
[1767510243483,0.05430908,91360.0,91347.0,0.010952]
[1767510243691,0.05430908,91360.0,91343.0,0.00794964]
[1767510244179,0.05430908,91360.0,91349.0,0.010951]
[1767510245377,0.05430908,91360.0,91350.0,0.010951]
[1767510245980,0.04763463,91354.0,91339.0,0.09312]
[1767510246180,0.05430908,91350.0,91339.0,0.09312]
[1767510246574,0.05858563,91354.0,91339.0,0.09312]
[1767510246780,0.05430908,91350.0,91339.0,0.09312]
[1767510246981,0.05430908,91350.0,91339.0,0.104073]
[1767510248986,0.05430908,91360.0,91344.0,0.00660738]
[1767510249287,0.01095,91358.0,91345.0,0.00660738]
[1767510249783,0.01095,91358.0,91343.0,0.03076273]
[1767510249988,0.010951,91357.0,91343.0,0.03719407]
[1767510252686,0.07198744,91360.0,91339.0,0.09852768]
[1767510252892,0.05430908,91349.0,91338.0,0.00016419]
[1767510253193,0.05430908,91350.0,91338.0,0.00016419]
[1767510253682,0.010952,91348.0,91338.0,0.00016419]
[1767510254679,0.010951,91350.0,91338.0,0.00016419]
[1767510254990,0.06526008,91350.0,91338.0,0.00016419]
[1767510255983,0.07198744,91350.0,91338.0,0.00016419]
[1767510256183,0.02863036,91345.0,91338.0,0.00016419]
[1767510256383,0.04090827,91348.0,91338.0,0.00016419]
[1767510256583,0.010952,91346.0,91338.0,0.00016419]
[1767510260096,0.05430908,91348.0,91338.0,0.00016419]
[1767510260295,0.010952,91349.0,91338.0,0.00016419]
[1767510261482,0.01111519,91351.0,91338.0,0.00016419]
[1767510261690,0.05430908,91350.0,91338.0,0.00016419]
[1767510261893,0.05430908,91350.0,91338.0,0.01111719]
[1767510262290,0.010951,91356.0,91340.0,0.05804924]
[1767510262486,0.02995627,91359.0,91344.0,0.010952]
[1767510262888,0.02452406,91358.0,91344.0,0.010952]
[1767510263197,0.06525908,91360.0,91346.0,0.010952]
[1767510263398,0.02452425,91359.0,91346.0,0.010952]
[1767510263590,0.02452425,91358.0,91346.0,0.010952]
[1767510263789,0.06525908,91360.0,91346.0,0.010952]
[1767510263992,0.02452424,91359.0,91346.0,0.010952]
[1767510264196,0.02452424,91358.0,91346.0,0.010952]
[1767510264392,0.09521535,91360.0,91346.0,0.010952]
[1767510264599,0.02995627,91357.0,91346.0,0.010952]
[1767510264897,0.06525908,91360.0,91346.0,0.010952]
[1767510265094,0.02451479,91359.0,91346.0,0.010952]
[1767510265287,0.02451479,91358.0,91346.0,0.010952]
[1767510265491,0.06525908,91360.0,91346.0,0.010952]
[1767510265795,0.02451513,91359.0,91346.0,0.010952]
[1767510266101,0.02451513,91358.0,91346.0,0.010952]
[1767510266300,0.06525908,91360.0,91346.0,0.010952]
[1767510266600,0.0245156,91359.0,91346.0,0.010952]
[1767510266791,0.05430908,91360.0,91348.0,0.010952]
[1767510266993,0.02995627,91363.0,91348.0,0.010952]
[1767510267902,0.04090627,91363.0,91348.0,0.010952]
[1767510268202,0.02995627,91363.0,91346.0,0.0035703]
[1767510268701,0.02995627,91363.0,91351.0,0.010951]
[1767510272094,0.02995627,91363.0,91346.0,0.0035703]
[1767510272302,0.02995627,91363.0,91348.0,0.010951]
[1767510273003,0.02995627,91363.0,91343.0,0.03076273]
[1767510273004,0.02995627,91363.0,91347.0,0.09312]
[1767510273204,0.02995627,91363.0,91350.0,0.010951]
[1767510273903,0.04784836,91363.0,91350.0,0.010951]
[1767510274092,0.09312,91368.0,91360.0,0.01095]
[1767510274903,0.09312,91368.0,91358.0,0.01095]
[1767510275305,0.09312,91368.0,91357.0,0.01095]
[1767510276102,0.07220117,91370.0,91352.0,0.02766961]
[1767510276411,0.01789209,91367.0,91347.0,0.09312]
[1767510276601,0.01789209,91365.0,91347.0,0.09312]
[1767510277211,0.01789209,91365.0,91353.0,0.010951]
[1767510277398,0.01789209,91364.0,91353.0,0.010951]
[1767510278002,0.01789209,91361.0,91350.0,0.010951]
[1767510278207,0.01789209,91359.0,91350.0,0.010951]
[1767510278409,0.01789209,91359.0,91347.0,0.09312]
[1767510278609,0.01789209,91357.0,91341.0,0.010952]
[1767510278805,0.01789209,91357.0,91342.0,0.09312]
[1767510279001,0.01789209,91357.0,91343.0,0.010952]
[1767510279201,0.05430908,91360.0,91344.0,0.01370581]
[1767510279511,0.010949,91366.0,91354.0,0.010951]
[1767510281111,0.01789209,91367.0,91356.0,0.010951]
[1767510282105,0.01789209,91367.0,91350.0,0.05430908]
[1767510282106,0.01789209,91367.0,91360.0,0.01095]
[1767510283314,0.01789209,91367.0,91361.0,0.01095]
[1767510283509,0.05430908,91371.0,91364.0,0.01095]
[1767510283715,0.01789209,91376.0,91364.0,0.01095]
[1767510284015,0.03596731,91378.0,91364.0,0.01095]
[1767510284016,0.01789209,91374.0,91364.0,0.01095]
[1767510285405,0.01789209,91373.0,91364.0,0.01095]
[1767510287313,0.01789209,91373.0,91362.0,0.01095]
[1767510288120,0.01789209,91372.0,91362.0,0.01095]
[1767510288823,0.07220117,91372.0,91362.0,0.01095]
[1767510289329,0.02445261,91371.0,91358.0,0.00016419]
[1767510289522,0.01789209,91375.0,91360.0,0.05430908]
[1767510289825,0.02445248,91374.0,91360.0,0.05430908]
[1767510290020,0.02445248,91373.0,91358.0,0.00016419]
[1767510290220,0.05430908,91370.0,91358.0,0.00016419]
[1767510290421,0.01789209,91375.0,91367.0,0.010949]
[1767510290617,0.09312,91377.0,91367.0,0.010949]
[1767510290818,0.02445696,91376.0,91367.0,0.010949]
[1767510291019,0.02445696,91375.0,91367.0,0.010949]
[1767510291314,0.02501931,91378.0,91370.0,0.010949]
[1767510291928,0.02501931,91378.0,91367.0,0.010949]
[1767510292113,0.0429114,91378.0,91367.0,0.010949]
[1767510292319,0.0429114,91378.0,91369.0,0.010949]
[1767510293430,0.0429114,91378.0,91367.0,0.010949]
[1767510293728,0.0429114,91378.0,91368.0,0.010949]
[1767510293928,0.0429114,91378.0,91370.0,0.010949]
[1767510294230,0.05430908,91380.0,91367.0,0.010949]
[1767510294620,0.01789209,91382.0,91369.0,0.010949]
[1767510296025,0.010948,91381.0,91362.0,0.13022836]
[1767510296217,0.02008079,91379.0,91362.0,0.11841677]
[1767510296626,0.0021887,91379.0,91363.0,0.03665795]
[1767510296829,0.0021887,91379.0,91364.0,0.03665795]
[1767510297029,0.09312,91384.0,91366.0,0.03665795]
[1767510297333,0.02446473,91383.0,91366.0,0.03665795]
[1767510297530,0.02446473,91382.0,91366.0,0.03665795]
[1767510297826,0.09312,91384.0,91367.0,0.03650266]
[1767510298031,0.010947,91387.0,91370.0,0.03650266]
[1767510298231,0.02446407,91386.0,91371.0,0.01116589]
[1767510298426,0.010947,91387.0,91362.0,0.09308]
[1767510298427,0.04235616,91385.0,91366.0,0.01116589]
[1767510298733,0.04235616,91384.0,91366.0,0.01116589]
[1767510298932,0.01789209,91384.0,91366.0,0.01116589]
[1767510299234,0.94068,91394.0,91379.0,0.010948]
[1767510299235,0.01789209,91393.0,91379.0,0.010948]
[1767510299531,0.01789209,91390.0,91379.0,0.010948]
[1767510299729,0.01789209,91388.0,91377.0,0.00016419]
[1767510300322,0.01585199,91381.0,91373.0,0.010949]
[1767510300528,0.01585199,91381.0,91370.0,0.09308]
[1767510300927,0.01585199,91380.0,91373.0,0.010948]
[1767510301121,0.01585199,91380.0,91359.0,0.02547673]
[1767510301319,0.01585199,91378.0,91360.0,0.09324419]
[1767510301827,0.01585199,91378.0,91368.0,0.010949]
[1767510301828,0.01585199,91377.0,91368.0,0.010949]
[1767510302029,0.01585199,91356.0,91343.0,0.010952]
[1767510302229,0.010951,91349.0,91339.0,0.09308]
[1767510302421,0.01585199,91346.0,91333.0,0.09308]
[1767510302621,0.01585199,91345.0,91328.0,0.010954]
[1767510302826,0.01585199,91345.0,91330.0,0.010954]
[1767510303027,0.01585199,91345.0,91329.0,0.09308]
[1767510303229,0.01585199,91345.0,91333.0,0.010953]
[1767510305733,0.01585199,91345.0,91330.0,0.010954]
[1767510305929,0.01585199,91341.0,91330.0,0.010954]
[1767510306628,0.01585199,91340.0,91330.0,0.010954]
[1767510306833,0.01585199,91340.0,91328.0,0.00016419]
[1767510306834,0.01585199,91333.0,91319.0,0.09527014]
[1767510307030,0.01585199,91333.0,91323.0,0.010955]
[1767510307232,0.01366257,91333.0,91323.0,0.010955]
[1767510308332,0.01366257,91333.0,91319.0,0.09543433]
[1767510308633,0.01366257,91333.0,91327.0,0.010954]
[1767510308831,0.02365881,91344.0,91327.0,0.010954]
[1767510309225,0.0395108,91342.0,91327.0,0.010954]
[1767510309427,0.01585199,91341.0,91327.0,0.010954]
[1767510309728,0.01585199,91340.0,91327.0,0.010954]
[1767510310126,0.01585199,91339.0,91327.0,0.010954]
[1767510310530,0.02365881,91340.0,91329.0,0.010954]
[1767510317236,0.0395108,91340.0,91329.0,0.010954]
[1767510317541,0.01585199,91339.0,91329.0,0.010954]
[1767510318841,0.01585199,91339.0,91327.0,0.010954]
[1767510319041,0.01585199,91339.0,91329.0,0.010954]
[1767510320344,0.01585199,91339.0,91330.0,0.010954]
[1767510323137,0.01585199,91339.0,91327.0,0.010954]
[1767510323939,0.01585199,91339.0,91320.0,0.04132543]
[1767510325345,0.01585199,91339.0,91328.0,0.010954]
[1767510326441,0.01585199,91339.0,91330.0,0.010954]
[1767510326646,0.02365881,91340.0,91330.0,0.010954]
[1767510327545,0.02365881,91340.0,91332.0,0.010953]
[1767510329135,0.02365881,91340.0,91334.0,0.010953]
[1767510329533,0.02365881,91340.0,91323.0,0.010954]
[1767510329534,0.00016419,91347.0,91327.0,0.04132543]
[1767510329739,0.00016419,91347.0,91337.0,0.010953]
[1767510331233,0.00016419,91347.0,91332.0,0.0363504]
[1767510332447,0.00016419,91347.0,91339.0,0.010953]
[1767510333046,0.01566629,91347.0,91335.0,0.010953]
[1767510333253,0.02661829,91347.0,91332.0,0.010953]
[1767510334545,0.02661829,91347.0,91333.0,0.010953]
[1767510335247,0.01553306,91346.0,91333.0,0.010953]
[1767510335553,0.01553306,91342.0,91335.0,0.010953]
[1767510336449,0.0223088,91343.0,91335.0,0.010953]
[1767510337152,0.01553306,91345.0,91330.0,0.09312]
[1767510337346,0.00016419,91347.0,91330.0,0.09312]
[1767510337541,0.01569725,91347.0,91330.0,0.09312]
[1767510338351,0.01569725,91347.0,91337.0,0.010953]
[1767510339746,0.02425742,91346.0,91337.0,0.010953]
[1767510340051,0.00016419,91347.0,91337.0,0.010953]
[1767510340348,0.02425764,91346.0,91337.0,0.010953]
[1767510340550,0.00016419,91347.0,91337.0,0.010953]
[1767510340742,0.02425332,91346.0,91337.0,0.010953]
[1767510340943,0.00016419,91347.0,91330.0,0.11655132]
[1767510341143,0.02425312,91346.0,91330.0,0.11655132]
[1767510341356,0.01111619,91347.0,91333.0,0.010953]
[1767510341546,0.02425276,91346.0,91333.0,0.010953]
[1767510341851,0.01111619,91347.0,91333.0,0.010953]
[1767510342051,0.02425279,91346.0,91333.0,0.010953]
[1767510342254,0.01111619,91347.0,91333.0,0.010953]
[1767510342452,0.02425262,91346.0,91333.0,0.010953]
[1767510342654,0.02664925,91347.0,91333.0,0.010953]
[1767510342854,0.02425258,91346.0,91333.0,0.010953]
[1767510343045,0.02664925,91347.0,91333.0,0.010953]
[1767510343247,0.02425249,91346.0,91333.0,0.010953]
[1767510343447,0.02664925,91347.0,91333.0,0.010953]
[1767510343647,0.02425251,91346.0,91333.0,0.010953]
[1767510343852,0.02664925,91347.0,91333.0,0.010953]
[1767510344048,0.01553306,91343.0,91330.0,0.104074]
[1767510344450,0.01553306,91343.0,91332.0,0.010953]
[1767510344651,0.0223088,91344.0,91332.0,0.010953]
[1767510345654,0.0223088,91344.0,91330.0,0.09312]
[1767510346448,0.0223088,91344.0,91331.0,0.010953]
[1767510347750,0.01553306,91343.0,91331.0,0.010953]
[1767510350060,0.00016419,91347.0,91333.0,0.010953]
[1767510350357,0.02423024,91346.0,91333.0,0.010953]
[1767510350558,0.00016419,91347.0,91335.0,0.010953]
[1767510350758,0.0242303,91346.0,91335.0,0.010953]
[1767510350958,0.00016419,91347.0,91335.0,0.010953]
[1767510351156,0.02423035,91346.0,91337.0,0.010953]
[1767510351467,0.00016419,91347.0,91332.0,0.01539558]
[1767510351763,0.00016419,91347.0,91336.0,0.010953]
[1767510352760,0.00016419,91347.0,91338.0,0.010953]
[1767510354256,0.09312,91350.0,91338.0,0.02343132]
[1767510354461,0.02416805,91349.0,91338.0,0.0388269]
[1767510354651,0.02416805,91348.0,91338.0,0.0388269]
[1767510354850,0.010951,91352.0,91338.0,0.0388269]
[1767510355061,0.010951,91354.0,91340.0,0.010952]
[1767510355260,0.010951,91353.0,91340.0,0.010952]
[1767510356460,0.09312,91359.0,91341.0,0.01539558]
[1767510356657,0.010951,91357.0,91343.0,0.0388269]
[1767510357263,0.010951,91357.0,91343.0,0.02343132]
[1767510358464,0.010951,91357.0,91344.0,0.010952]
[1767510360166,0.01111419,91359.0,91344.0,0.010952]
[1767510360568,0.00016419,91359.0,91349.0,0.010951]
[1767510360757,0.00016419,91359.0,91351.0,0.010951]